fUST/lending_fUST_20250626
["ID","MTS","AMOUNT","RATE_DAILY","PERIOD"]
[367850458,1750945844027,-460.0,0.00016712,2]
[367850460,1750945844037,-460.0,0.00016712,2]
[367850462,1750945844046,-460.0,0.00016712,2]
[367850464,1750945844055,-625.29,0.00016712,2]
[367850466,1750945844064,-460.0,0.00016712,2]
[367850468,1750945844073,-460.0,0.00016712,2]
[367850470,1750945844083,-460.0,0.00016712,2]
[367850472,1750945844093,-460.0,0.00016712,2]
[367850474,1750945844102,-460.0,0.00016712,2]
[367850475,1750945844112,-460.0,0.00016712,2]
[367850477,1750945844121,-463.07,0.00016712,2]
[367850479,1750945844130,-466.30183669,0.00016712,2]
[367850481,1750945844139,-533.16,0.00016712,2]
[367850483,1750945844149,-460.0,0.00016712,2]
[367850485,1750945844158,-460.0,0.00016712,2]
[367850487,1750945844167,-1543.99,0.00016712,2]
[367850489,1750945844176,-460.0,0.00016712,2]
[367850491,1750945844186,-578.60596437,0.00016712,2]
[367850493,1750945844195,-460.0,0.00016712,2]
[367850495,1750945844205,-460.0,0.00016712,2]
[367850497,1750945844214,-240.0,0.00016712,2]
[367850499,1750945844223,-2101.76,0.00016712,2]
[367850501,1750945844232,-460.0,0.00016712,2]
[367850502,1750945844242,-460.0,0.00016712,2]
[367850504,1750945844251,-460.0,0.00016712,2]
[367850506,1750945844260,-489.27,0.00016712,2]
[367850508,1750945844270,-460.0,0.00016712,2]
[367850510,1750945844279,-1224.13,0.00016712,2]
[367850512,1750945844288,-460.0,0.00016712,2]
[367850514,1750945844298,-502.33,0.00016712,2]
[367850516,1750945844307,-460.0,0.00016712,2]
[367850518,1750945844316,-460.0,0.00016712,2]
[367850520,1750945844325,-460.0,0.00016712,2]
[367850522,1750945844334,-610.36,0.00016712,2]
[367850524,1750945844344,-460.0,0.00016712,2]
[367850526,1750945844353,-460.0,0.00016712,2]
[367850527,1750945844362,-460.0,0.00016712,2]
[367850529,1750945844372,-460.0,0.00016712,2]
[367850531,1750945844381,-460.0,0.00016712,2]
[367850533,1750945844391,-460.0,0.00016712,2]
[367850535,1750945844400,-479.77,0.00016712,2]
[367850537,1750945844411,-460.0,0.00016712,2]
[367850539,1750945844420,-585.64,0.00016712,2]
[367850541,1750945844430,-460.0,0.00016712,2]
[367850543,1750945844439,-2347.55,0.00016712,2]
[367850545,1750945844449,-410.0,0.00016712,2]
[367850547,1750945844458,-460.0,0.00016712,2]
[367850550,1750945844467,-517.55,0.00016712,2]
[367850553,1750945844476,-460.0,0.00016712,2]
[367850555,1750945844486,-460.0,0.00016712,2]
[367850556,1750945844495,-1417.04,0.00016712,2]
[367850558,1750945844504,-463.13213644,0.00016712,2]
[367850560,1750945844513,-460.0,0.00016712,2]
[367850562,1750945844522,-598.15256478,0.00016712,2]
[367850563,1750945844532,-661.16,0.00016712,2]
[367850564,1750945844542,-4377.88,0.00016712,2]
[367850565,1750945844551,-519.95,0.00016712,2]
[367850566,1750945844560,-2947.08,0.00016712,2]
[367850567,1750945844570,-460.0,0.00016712,2]
[367850568,1750945844580,-460.0,0.00016712,2]
[367850569,1750945844590,-460.0,0.00016712,2]
[367850570,1750945844600,-460.0,0.00016712,2]
[367850571,1750945844610,-460.0,0.00016712,2]
[367850572,1750945844619,-1094.21,0.00016712,2]
[367850573,1750945844629,-561.19398249,0.00016712,2]
[367850574,1750945844639,-460.0,0.00016712,2]
[367850575,1750945844648,-460.0,0.00016712,2]
[367850576,1750945844658,-460.0,0.00016712,2]
[367850577,1750945844667,-460.0,0.00016712,2]
[367850578,1750945844677,-460.0,0.00016712,2]
[367850579,1750945844686,-460.0,0.00016712,2]
[367850580,1750945844696,-460.0,0.00016712,2]
[367850581,1750945844705,-410.96247218,0.00016712,2]
[367850582,1750945844715,-521.68446556,0.00016712,2]
[367850583,1750945844725,-460.0,0.00016712,2]
[367850584,1750945844734,-589.06,0.00016712,2]
[367850586,1750945844744,-641.74,0.00016712,2]
[367850587,1750945844754,-1239.94,0.00016712,2]
[367850588,1750945844767,-460.0,0.00016712,2]
[367850590,1750945844777,-460.0,0.00016712,2]
[367850592,1750945844786,-556.83,0.00016712,2]
[367850594,1750945844796,-440.0,0.00016712,2]
[367850596,1750945844807,-460.0,0.00016712,2]
[367850598,1750945844817,-466.95,0.00016712,2]
[367850600,1750945844826,-1347.46,0.00016712,2]
[367850602,1750945844836,-3717.3,0.00016712,2]
[367850604,1750945844846,-460.0,0.00016712,2]
[367850606,1750945844856,-460.0,0.00016712,2]
[367850608,1750945844865,-460.0,0.00016712,2]
[367850610,1750945844874,-488.41,0.00016712,2]
[367850612,1750945844884,-460.0,0.00016712,2]
[367850614,1750945844894,-460.0,0.00016712,2]
[367850616,1750945844904,-460.0,0.00016712,2]
[367850618,1750945844913,-463.84740366,0.00016712,2]
[367850620,1750945844923,-460.0,0.00016712,2]
[367850622,1750945844933,-1396.1,0.00016712,2]
[367850624,1750945844942,-460.0,0.00016712,2]
[367850626,1750945844952,-460.0,0.00016712,2]
[367850628,1750945844961,-460.0,0.00016712,2]
[367850630,1750945844970,-460.0,0.00016712,2]
[367850632,1750945844980,-460.0,0.00016712,2]
[367850634,1750945844989,-460.0,0.00016712,2]
[367850636,1750945844998,-581.16,0.00016712,2]
[367850638,1750945845008,-460.0,0.00016712,2]
[367850640,1750945845018,-781.78,0.00016712,2]
[367850642,1750945845027,-460.0,0.00016712,2]
[367850644,1750945845037,-1606.11,0.00016712,2]
[367850646,1750945845046,-460.0,0.00016712,2]
[367850648,1750945845055,-460.0,0.00016712,2]
[367850650,1750945845065,-460.0,0.00016712,2]
[367850652,1750945845074,-460.0,0.00016712,2]
[367850654,1750945845083,-460.0,0.00016712,2]
[367850656,1750945845092,-1615.99,0.00016712,2]
[367850658,1750945845101,-460.0,0.00016712,2]
[367850660,1750945845111,-460.0,0.00016712,2]
[367850662,1750945845120,-654.98,0.00016712,2]
[367850664,1750945845131,-460.0,0.00016712,2]
[367850665,1750945845140,-777.89,0.00016712,2]
[367850667,1750945845150,-460.0,0.00016712,2]
[367850669,1750945845159,-380.0,0.00016712,2]
[367850671,1750945845169,-469.30885599,0.00016712,2]
[367850673,1750945845178,-1601.04,0.00016712,2]
[367850675,1750945845186,-541.1,0.00016712,2]
[367850677,1750945845196,-460.0,0.00016712,2]
[367850679,1750945845205,-947.87,0.00016712,2]
[367850681,1750945845214,-258.906983,0.00016712,2]
[367850683,1750945845224,-460.0,0.00016712,2]
[367850685,1750945845233,-506.98,0.00016712,2]
[367850687,1750945845242,-460.0,0.00016712,2]
[367850689,1750945845251,-460.0,0.00016712,2]
[367850691,1750945845261,-460.0,0.00016712,2]
[367850693,1750945845270,-460.0,0.00016712,2]
[367850695,1750945845281,-460.0,0.00016712,2]
[367850697,1750945845291,-460.0,0.00016712,2]
[367850699,1750945845301,-551.12,0.00016712,2]
[367850701,1750945845310,-445.49132764,0.00016712,2]
[367850703,1750945845319,-460.0,0.00016712,2]
[367850705,1750945845329,-447.96903851,0.00016712,2]
[367850707,1750945845338,-460.0,0.00016712,2]
[367850709,1750945845348,-460.0,0.00016712,2]
[367850711,1750945845357,-460.0,0.00016712,2]
[367850713,1750945845366,-460.0,0.00016712,2]
[367850715,1750945845376,-460.0,0.00016712,2]
[367850717,1750945845385,-412.74608267,0.00016712,2]
[367850719,1750945845394,-460.0,0.00016712,2]
[367850721,1750945845403,-460.0,0.00016712,2]
[367850723,1750945845413,-460.0,0.00016712,2]
[367850725,1750945845422,-2153.56,0.00016712,2]
[367850727,1750945845431,-1103.1,0.00016712,2]
[367850729,1750945845441,-460.0,0.00016712,2]
[367850731,1750945845450,-460.0,0.00016712,2]
[367850733,1750945845459,-460.0,0.00016712,2]
[367850735,1750945845468,-460.0,0.00016712,2]
[367850737,1750945845478,-460.0,0.00016712,2]
[367850739,1750945845487,-460.0,0.00016712,2]
[367850741,1750945845496,-500.0,0.00016712,2]
[367850743,1750945845506,-1677.0,0.00016739,2]
[367850745,1750945845515,-1677.0,0.00016767,2]
[367850747,1750945845525,-1677.0,0.00016794,2]
[367850749,1750945845534,-1677.0,0.00016822,2]
[367850751,1750945845544,-1677.0,0.00016849,2]
[367850753,1750945845553,-1677.0,0.00016876,2]
[367850755,1750945845563,-780.96663306,0.00016882,2]
[367850758,1750945845572,-3865.85944561,0.00016886,2]
[367850760,1750945845582,-5887.53402358,0.000169,2]
[367850762,1750945845592,-1677.0,0.00016904,2]
[367850764,1750945845602,-1677.0,0.00016931,2]
[367850765,1750945845611,-1677.0,0.00016959,2]
[367850769,1750945845621,-1677.0,0.00016986,2]
[367850772,1750945845631,-460.0,0.00016986,2]
[367850775,1750945845640,-460.0,0.00016986,2]
[367850776,1750945845650,-460.0,0.00016986,2]
[367850779,1750945845660,-460.0,0.00016986,2]
[367850782,1750945845669,-265.67870005,0.00016986,2]
[367850785,1750945845678,-460.0,0.00016986,2]
[367850788,1750945845687,-460.0,0.00016986,2]
[367850791,1750945845697,-460.0,0.00016986,2]
[367850794,1750945845706,-483.8,0.00016986,2]
[367850797,1750945845716,-460.0,0.00016986,2]
[367850801,1750945845725,-557.34038684,0.00016986,2]
[367850803,1750945845735,-460.0,0.00016986,2]
[367850806,1750945845744,-460.0,0.00016986,2]
[367850809,1750945845754,-460.0,0.00016986,2]
[367850812,1750945845764,-460.0,0.00016986,2]
[367850815,1750945845775,-460.0,0.00016986,2]
[367850818,1750945845784,-460.0,0.00016986,2]
[367850821,1750945845794,-460.0,0.00016986,2]
[367850825,1750945845803,-460.0,0.00016986,2]
[367850828,1750945845812,-460.0,0.00016986,2]
[367850830,1750945845821,-460.0,0.00016986,2]
[367850832,1750945845831,-460.0,0.00016986,2]
[367850834,1750945845842,-460.0,0.00016986,2]
[367850836,1750945845851,-568.84709465,0.00016986,2]
[367850838,1750945845860,-460.0,0.00016986,2]
[367850840,1750945845869,-496.7,0.00016986,2]
[367850842,1750945845878,-460.0,0.00016986,2]
[367850844,1750945845888,-460.0,0.00016986,2]
[367850846,1750945845897,-460.0,0.00016986,2]
[367850848,1750945845906,-460.0,0.00016986,2]
[367850850,1750945845915,-460.0,0.00016986,2]
[367850852,1750945845924,-460.0,0.00016986,2]
[367850853,1750945845934,-460.0,0.00016986,2]
[367850855,1750945845943,-460.0,0.00016986,2]
[367850857,1750945845952,-460.0,0.00016986,2]
[367850859,1750945845962,-460.0,0.00016986,2]
[367850861,1750945845972,-460.0,0.00016986,2]
[367850863,1750945845981,-460.0,0.00016986,2]
[367850865,1750945845990,-460.0,0.00016986,2]
[367850867,1750945846000,-460.0,0.00016986,2]
[367850869,1750945846009,-486.33807008,0.00016986,2]
[367850871,1750945846018,-460.0,0.00016986,2]
[367850873,1750945846027,-432.40168516,0.00016986,2]
[367850875,1750945846037,-460.0,0.00016986,2]
[367850877,1750945846046,-460.0,0.00016986,2]
[367850879,1750945846055,-460.0,0.00016986,2]
[367850881,1750945846065,-460.0,0.00016986,2]
[367850883,1750945846074,-460.0,0.00016986,2]
[367850885,1750945846083,-500.0,0.00016986,2]
[367850887,1750945846094,-460.0,0.00016986,2]
[367850889,1750945846103,-460.0,0.00016986,2]
[367850891,1750945846112,-460.0,0.00016986,2]
[367850893,1750945846122,-460.0,0.00016986,2]
[367850895,1750945846132,-706.05,0.00016986,2]
[367850897,1750945846141,-387.03065936,0.00016986,2]
[367850899,1750945846150,-460.0,0.00016986,2]
[367850901,1750945846160,-460.0,0.00016986,2]
[367850903,1750945846169,-460.0,0.00016986,2]
[367850905,1750945846178,-593.48428246,0.00016986,2]
[367850907,1750945846188,-460.0,0.00016986,2]
[367850909,1750945846198,-460.0,0.00016986,2]
[367850925,1750945846336,-434.08880575,0.00016986,2]
[367850927,1750945846347,-460.0,0.00016986,2]
[367850929,1750945846356,-460.0,0.00016986,2]
[367850931,1750945846367,-460.0,0.00016986,2]
[367850933,1750945846376,-460.0,0.00016986,2]
[367850935,1750945846386,-460.0,0.00016986,2]
[367850937,1750945846395,-460.0,0.00016986,2]
[367850939,1750945846404,-460.0,0.00016986,2]
[367850940,1750945846414,-460.0,0.00016986,2]
[367850942,1750945846423,-1012.6,0.00016986,2]
[367850944,1750945846434,-460.0,0.00016986,2]
[367850947,1750945846444,-460.0,0.00016986,2]
[367850949,1750945846454,-605.01015284,0.00016986,2]
[367850951,1750945846464,-460.0,0.00016986,2]
[367850953,1750945846474,-460.0,0.00016986,2]
[367850954,1750945846483,-460.0,0.00016986,2]
[367850956,1750945846492,-460.0,0.00016986,2]
[367850958,1750945846502,-460.0,0.00016986,2]
[367850960,1750945846511,-460.0,0.00016986,2]
[367850962,1750945846521,-298.0922091,0.00016986,2]
[367850964,1750945846531,-460.0,0.00016986,2]
[367850966,1750945846540,-460.0,0.00016986,2]
[367850968,1750945846550,-347.70339752,0.00016986,2]
[367850970,1750945846560,-460.0,0.00016986,2]
[367850972,1750945846569,-460.0,0.00016986,2]
[367850974,1750945846578,-453.21197749,0.00016986,2]
[367850976,1750945846588,-460.0,0.00016986,2]
[367850978,1750945846598,-460.0,0.00016986,2]
[367850980,1750945846607,-460.0,0.00016986,2]
[367850982,1750945846616,-175.8223709,0.00016986,2]
[367850984,1750945846626,-290.29023511,0.00016986,2]
[367850986,1750945846637,-508.90429051,0.00016986,2]
[367850988,1750945846646,-460.0,0.00016986,2]
[367850990,1750945846656,-460.0,0.00016986,2]
[367850992,1750945846665,-460.0,0.00016986,2]
[367850994,1750945846675,-460.0,0.00016986,2]
[367850996,1750945846684,-460.0,0.00016986,2]
[367850998,1750945846694,-460.0,0.00016986,2]
[367851000,1750945846704,-460.0,0.00016986,2]
[367851002,1750945846713,-460.0,0.00016986,2]
[367851004,1750945846723,-457.64978454,0.00016986,2]
[367851006,1750945846732,-460.0,0.00016986,2]
[367851008,1750945846741,-460.0,0.00016986,2]
[367851010,1750945846750,-460.0,0.00016986,2]
[367851012,1750945846762,-460.0,0.00016986,2]
[367851013,1750945846771,-460.0,0.00016986,2]
[367851016,1750945846781,-625.29,0.00016986,2]
[367851017,1750945846790,-460.0,0.00016986,2]
[367851019,1750945846799,-460.0,0.00016986,2]
[367851021,1750945846809,-460.0,0.00016986,2]
[367851023,1750945846819,-460.0,0.00016986,2]
[367851025,1750945846828,-460.0,0.00016986,2]
[367851027,1750945846840,-460.0,0.00016986,2]
[367851029,1750945846849,-463.07,0.00016986,2]
[367851031,1750945846859,-533.16,0.00016986,2]
[367851033,1750945846869,-460.0,0.00016986,2]
[367851035,1750945846878,-460.0,0.00016986,2]
[367851037,1750945846887,-1543.99,0.00016986,2]
[367851039,1750945846897,-460.0,0.00016986,2]
[367851041,1750945846907,-460.0,0.00016986,2]
[367851043,1750945846916,-460.0,0.00016986,2]
[367851045,1750945846926,-2101.76,0.00016986,2]
[367851047,1750945846935,-460.0,0.00016986,2]
[367851049,1750945846944,-460.0,0.00016986,2]
[367851051,1750945846953,-460.0,0.00016986,2]
[367851053,1750945846962,-489.27,0.00016986,2]
[367851055,1750945846971,-460.0,0.00016986,2]
[367851057,1750945846980,-1224.13,0.00016986,2]
[367851059,1750945846989,-460.0,0.00016986,2]
[367851061,1750945846998,-502.33,0.00016986,2]
[367851063,1750945847007,-460.0,0.00016986,2]
[367851065,1750945847016,-460.0,0.00016986,2]
[367851067,1750945847026,-460.0,0.00016986,2]
[367851069,1750945847035,-610.36,0.00016986,2]
[367851071,1750945847044,-245.9012214,0.00016986,2]
[367851073,1750945847053,-460.0,0.00016986,2]
[367851075,1750945847062,-460.0,0.00016986,2]
[367851077,1750945847071,-460.0,0.00016986,2]
[367851078,1750945847080,-460.0,0.00016986,2]
[367851080,1750945847091,-479.77,0.00016986,2]
[367851081,1750945847100,-460.0,0.00016986,2]
[367851082,1750945847109,-585.64,0.00016986,2]
[367851083,1750945847118,-395.48,0.00016986,2]
[367851084,1750945847129,-2347.55,0.00016986,2]
[367851085,1750945847138,-460.0,0.00016986,2]
[367851087,1750945847147,-517.55,0.00016986,2]
[367851089,1750945847156,-592.02475976,0.00016986,2]
[367851091,1750945847166,-460.0,0.00016986,2]
[367851093,1750945847175,-1417.04,0.00016986,2]
[367851095,1750945847184,-460.0,0.00016986,2]
[367851097,1750945847193,-661.16,0.00016986,2]
[367851099,1750945847203,-4377.88,0.00016986,2]
[367851101,1750945847212,-519.95,0.00016986,2]
[367851103,1750945847221,-2947.08,0.00016986,2]
[367851105,1750945847231,-460.0,0.00016986,2]
[367851107,1750945847239,-460.0,0.00016986,2]
[367851109,1750945847249,-460.0,0.00016986,2]
[367851111,1750945847258,-460.0,0.00016986,2]
[367851113,1750945847268,-1094.21,0.00016986,2]
[367851115,1750945847277,-460.0,0.00016986,2]
[367851117,1750945847286,-460.0,0.00016986,2]
[367851119,1750945847295,-460.0,0.00016986,2]
[367851121,1750945847304,-460.0,0.00016986,2]
[367851123,1750945847314,-460.0,0.00016986,2]
[367851125,1750945847323,-460.0,0.00016986,2]
[367851127,1750945847333,-460.0,0.00016986,2]
[367851129,1750945847343,-460.0,0.00016986,2]
[367851131,1750945847353,-589.06,0.00016986,2]
[367851133,1750945847362,-641.74,0.00016986,2]
[367851135,1750945847371,-1239.94,0.00016986,2]
[367851137,1750945847380,-460.0,0.00016986,2]
[367851139,1750945847390,-460.0,0.00016986,2]
[367851141,1750945847399,-556.83,0.00016986,2]
[367851143,1750945847408,-460.0,0.00016986,2]
[367851145,1750945847418,-466.95,0.00016986,2]
[367851147,1750945847427,-1347.46,0.00016986,2]
[367851149,1750945847436,-3717.3,0.00016986,2]
[367851151,1750945847446,-460.0,0.00016986,2]
[367851153,1750945847455,-460.0,0.00016986,2]
[367851155,1750945847465,-488.41,0.00016986,2]
[367851157,1750945847474,-460.0,0.00016986,2]
[367851159,1750945847484,-460.0,0.00016986,2]
[367851161,1750945847493,-460.0,0.00016986,2]
[367851163,1750945847503,-1396.1,0.00016986,2]
[367851165,1750945847512,-460.0,0.00016986,2]
[367851167,1750945847521,-460.0,0.00016986,2]
[367851169,1750945847531,-460.0,0.00016986,2]
[367851171,1750945847540,-460.0,0.00016986,2]
[367851173,1750945847550,-460.0,0.00016986,2]
[367851175,1750945847559,-581.16,0.00016986,2]
[367851177,1750945847568,-460.0,0.00016986,2]
[367851179,1750945847578,-781.78,0.00016986,2]
[367851181,1750945847589,-460.0,0.00016986,2]
[367851183,1750945847599,-1606.11,0.00016986,2]
[367851185,1750945847608,-460.0,0.00016986,2]
[367851187,1750945847618,-460.0,0.00016986,2]
[367851189,1750945847628,-460.0,0.00016986,2]
[367851191,1750945847637,-460.0,0.00016986,2]
[367851193,1750945847647,-460.0,0.00016986,2]
[367851195,1750945847656,-1615.99,0.00016986,2]
[367851197,1750945847666,-460.0,0.00016986,2]
[367851199,1750945847675,-460.0,0.00016986,2]
[367851201,1750945847685,-654.98,0.00016986,2]
[367851203,1750945847695,-460.0,0.00016986,2]
[367851205,1750945847704,-777.89,0.00016986,2]
[367851207,1750945847713,-460.0,0.00016986,2]
[367851209,1750945847722,-1601.04,0.00016986,2]
[367851211,1750945847731,-541.1,0.00016986,2]
[367851212,1750945847739,-460.0,0.00016986,2]
[367851214,1750945847748,-947.87,0.00016986,2]
[367851216,1750945847761,-460.0,0.00016986,2]
[367851218,1750945847771,-506.98,0.00016986,2]
[367851220,1750945847781,-460.0,0.00016986,2]
[367851223,1750945847790,-460.0,0.00016986,2]
[367851224,1750945847800,-460.0,0.00016986,2]
[367851226,1750945847809,-460.0,0.00016986,2]
[367851228,1750945847820,-460.0,0.00016986,2]
[367851230,1750945847830,-551.12,0.00016986,2]
[367851233,1750945847841,-460.0,0.00016986,2]
[367851235,1750945847851,-460.0,0.00016986,2]
[367851236,1750945847860,-460.0,0.00016986,2]
[367851238,1750945847869,-460.0,0.00016986,2]
[367851241,1750945847880,-460.0,0.00016986,2]
[367851243,1750945847889,-430.55966655,0.00016986,2]
[367851244,1750945847900,-460.0,0.00016986,2]
[367851246,1750945847910,-460.0,0.00016986,2]
[367851248,1750945847919,-460.0,0.00016986,2]
[367851251,1750945847929,-460.0,0.00016986,2]
[367851252,1750945847938,-2153.56,0.00016986,2]
[367851255,1750945847948,-1103.1,0.00016986,2]
[367851256,1750945847959,-211.57912071,0.00016986,2]
[367851258,1750945847968,-460.0,0.00016986,2]
[367851260,1750945847977,-460.0,0.00016986,2]
[367851262,1750945847987,-460.0,0.00016986,2]
[367851264,1750945847996,-369.62724804,0.00016986,2]
[367851266,1750945848005,-628.60421314,0.00016986,2]
[367851268,1750945848015,-1994.94775522,0.00017,2]
[367851270,1750945848024,-1677.0,0.00017013,2]
[367851272,1750945848034,-1677.0,0.00017041,2]
[367851274,1750945848043,-1679.10000001,0.00017068,2]
[367851276,1750945848053,-151.0,0.000171,2]
[367851278,1750945848063,-3865.85944561,0.0001716,2]
[367851280,1750945848073,-314.0,0.00017172,2]
[367851282,1750945848082,-5887.53402344,0.00017176,2]
[367851284,1750945848094,-500.0,0.00017208,2]
[367851287,1750945848104,-500.0,0.00017208,2]
[367851289,1750945848113,-500.0,0.00017243,2]
[367851291,1750945848122,-500.0,0.00017243,2]
[367851293,1750945848132,-410.87111296,0.0001726,2]
[367851295,1750945848141,-460.0,0.0001726,2]
[367851297,1750945848150,-460.0,0.0001726,2]
[367851299,1750945848160,-460.0,0.0001726,2]
[367851301,1750945848170,-285.68,0.0001726,2]
[367851303,1750945848179,-460.0,0.0001726,2]
[367851305,1750945848189,-483.8,0.0001726,2]
[367851307,1750945848199,-460.0,0.0001726,2]
[367851309,1750945848208,-461.36235608,0.0001726,2]
[367851311,1750945848217,-460.0,0.0001726,2]
[367851313,1750945848227,-460.0,0.0001726,2]
[367851315,1750945848236,-460.0,0.0001726,2]
[367851317,1750945848245,-460.0,0.0001726,2]
[367851319,1750945848254,-460.0,0.0001726,2]
[367851321,1750945848265,-460.0,0.0001726,2]
[367851323,1750945848275,-460.0,0.0001726,2]
[367851325,1750945848284,-460.0,0.0001726,2]
[367851327,1750945848293,-460.0,0.0001726,2]
[367851329,1750945848303,-460.0,0.0001726,2]
[367851331,1750945848313,-496.7,0.0001726,2]
[367851333,1750945848322,-460.0,0.0001726,2]
[367851335,1750945848332,-460.0,0.0001726,2]
[367851338,1750945848344,-460.0,0.0001726,2]
[367851340,1750945848354,-460.0,0.0001726,2]
[367851342,1750945848365,-580.15650377,0.0001726,2]
[367851343,1750945848375,-500.0,0.0001726,2]
[367851346,1750945848384,-460.0,0.0001726,2]
[367851348,1750945848395,-460.0,0.0001726,2]
[367851349,1750945848404,-460.0,0.0001726,2]
[367851351,1750945848414,-460.0,0.0001726,2]
[367851353,1750945848424,-342.81463594,0.0001726,2]
[367851355,1750945848433,-460.0,0.0001726,2]
[367851357,1750945848442,-460.0,0.0001726,2]
[367851360,1750945848452,-460.0,0.0001726,2]
[367851362,1750945848462,-460.0,0.0001726,2]
[367851364,1750945848472,-460.0,0.0001726,2]
[367851366,1750945848482,-460.0,0.0001726,2]
[367851367,1750945848491,-460.0,0.0001726,2]
[367851370,1750945848509,-460.0,0.0001726,2]
[367851373,1750945848522,-522.87833624,0.0001726,2]
[367851375,1750945848532,-460.0,0.0001726,2]
[367851377,1750945848542,-460.0,0.0001726,2]
[367851379,1750945848552,-460.0,0.0001726,2]
[367851381,1750945848562,-460.0,0.0001726,2]
[367851383,1750945848572,-706.05,0.0001726,2]
[367851385,1750945848582,-460.0,0.0001726,2]
[367851387,1750945848595,-460.0,0.0001726,2]
[367851389,1750945848605,-460.0,0.0001726,2]
[367851391,1750945848614,-223.46578571,0.0001726,2]
[367851393,1750945848624,-460.0,0.0001726,2]
[367851395,1750945848634,-460.0,0.0001726,2]
[367851397,1750945848645,-460.0,0.0001726,2]
[367851399,1750945848655,-460.0,0.0001726,2]
[367851401,1750945848665,-460.0,0.0001726,2]
[367851404,1750945848676,-460.0,0.0001726,2]
[367851406,1750945848686,-460.0,0.0001726,2]
[367851408,1750945848696,-460.0,0.0001726,2]
[367851410,1750945848706,-1012.6,0.0001726,2]
[367851412,1750945848715,-460.0,0.0001726,2]
[367851414,1750945848725,-460.0,0.0001726,2]
[367851415,1750945848734,-460.0,0.0001726,2]
[367851416,1750945848743,-460.0,0.0001726,2]
[367851417,1750945848753,-460.0,0.0001726,2]
[367851418,1750945848763,-460.0,0.0001726,2]
[367851419,1750945848774,-460.0,0.0001726,2]
[367851420,1750945848783,-460.0,0.0001726,2]
[367851421,1750945848793,-460.0,0.0001726,2]
[367851422,1750945848802,-460.0,0.0001726,2]
[367851423,1750945848812,-460.0,0.0001726,2]
[367851424,1750945848822,-460.0,0.0001726,2]
[367851425,1750945848832,-460.0,0.0001726,2]
[367851426,1750945848843,-460.0,0.0001726,2]
[367851427,1750945848853,-460.0,0.0001726,2]
[367851428,1750945848863,-460.0,0.0001726,2]
[367851429,1750945848873,-460.0,0.0001726,2]
[367851430,1750945848883,-460.0,0.0001726,2]
[367851431,1750945848893,-460.0,0.0001726,2]
[367851432,1750945848904,-460.0,0.0001726,2]
[367851433,1750945848913,-278.34613838,0.0001726,2]
[367851434,1750945848923,-460.0,0.0001726,2]
[367851435,1750945848933,-460.0,0.0001726,2]
[367851436,1750945848943,-460.0,0.0001726,2]